bitfinex-derivatives/quotes_SOLF0:USTF0_20250312
["timestamp","ask_amount","ask_price","bid_price","bid_amount"]
[1741773041609,1.40088159,124.32,124.27,10.89190344]
[1741773041813,10.89190344,124.35,124.29,10.89190344]
[1741773042511,10.94990213,124.33,124.31,0.06085299]
[1741773042713,10.89190344,124.32,124.31,0.06085299]
[1741773043913,13.31190344,124.32,124.31,0.06085299]
[1741773044111,13.31190344,124.32,124.25,122.72350779]
[1741773044314,17.00093695,124.3,124.25,122.72350779]
[1741773044510,61.36093695,124.3,124.25,122.72350779]
[1741773044814,285.94,124.33,124.26,17.00093695]
[1741773045213,0.05302285,124.31,124.28,0.05438343]
[1741773046514,17.00093695,124.37,124.28,19.07682038]
[1741773046817,61.34093695,124.37,124.28,19.02243695]
[1741773047617,0.05728099,124.34,124.31,0.0582232]
[1741773057120,17.00093695,124.33,124.31,0.0582232]
[1741773062730,17.00093695,124.33,124.24,46.5899]
[1741773062931,17.00093695,124.3,124.24,2.3499]
[1741773063130,8.0463,124.31,124.24,2.3499]
[1741773063131,17.00093695,124.28,124.24,2.3499]
[1741773063330,17.00093695,124.28,124.2,122.72350779]
[1741773063523,17.00093695,124.24,124.2,122.72350779]
[1741773063930,17.00093695,124.22,124.2,110.08672649]
[1741773064130,17.00093695,124.22,124.2,42.54128895]
[1741773064333,8.0536,124.19,124.18,89.36014707]
[1741773064525,8.0536,124.19,124.18,46.38904707]
[1741773064731,34.0018739,124.2,124.17,120.83903741]
[1741773064933,17.00093695,124.18,124.16,223.28772901]
[1741773065129,17.00093695,124.18,124.17,0.05656711]
[1741773065430,8.0549,124.17,124.16,115.15434978]
[1741773065630,8.0549,124.17,124.16,70.37694978]
[1741773065828,10.4749,124.17,124.16,19.84569559]
[1741773066328,8.0555,124.16,124.15,196.6143887]
[1741773066535,25.05643695,124.16,124.15,137.42689055]
[1741773067333,25.05643695,124.16,124.15,84.28354348]
[1741773067534,25.05643695,124.16,124.15,15.84744348]
[1741773067838,36.4218739,124.16,124.06,2.3732]
[1741773068135,36.4218739,124.16,124.0,17.00093695]
[1741773068136,17.00093695,124.11,124.02,17.00093695]
[1741773068432,17.00093695,124.09,124.01,6.8075]
[1741773068631,61.16093695,124.09,124.01,6.8075]
[1741773068935,0.05736253,124.06,124.04,0.05742599]
[1741773069331,8.0627,124.05,124.04,0.05742599]
[1741773069926,69.22363695,124.05,124.04,2.599e-05]
[1741773070130,61.16093695,124.05,123.94,61.16093695]
[1741773070332,67.13835151,124.05,123.94,61.16093695]
[1741773070833,17.00093695,124.03,123.94,61.16093695]
[1741773071031,17.00093695,124.01,123.93,6.8907]
[1741773071235,17.00093695,124.01,123.97,0.05576509]
[1741773071236,0.05602238,124.0,123.97,0.05576509]
[1741773071730,8.0672,123.98,123.97,0.05576509]
[1741773072432,35.41234121,123.98,123.97,6.509e-05]
[1741773072936,41.36384534,123.98,123.97,6.509e-05]
[1741773073328,14.01870413,123.98,123.97,6.509e-05]
[1741773073630,5.95150413,123.98,123.88,27.34514121]
[1741773073824,5.95150413,123.98,123.87,6.7267]
[1741773073825,44.16,123.97,123.87,6.7267]
[1741773074023,8.0736,123.89,123.84,71.50514121]
[1741773074324,27.34514121,123.96,123.86,27.34514121]
[1741773074634,8.0717,123.92,123.86,27.34514121]
[1741773074839,0.05312606,123.92,123.9,0.05945064]
[1741773075033,0.05312606,123.92,123.86,27.34514121]
[1741773075233,8.0722,123.91,123.86,27.34514121]
[1741773075429,8.0722,123.91,123.88,27.34514121]
[1741773075629,0.05312606,123.92,123.88,27.34514121]
[1741773075830,8.0723,123.91,123.88,27.34514121]
[1741773076027,75.85689046,123.93,123.86,27.34514121]
[1741773076334,0.05852582,123.91,123.85,27.34514121]
[1741773077338,0.05852582,123.91,123.83,27.34514121]
[1741773077531,27.34514121,123.94,123.83,27.34514121]
[1741773077938,0.05835958,123.88,123.83,27.34514121]
[1741773078740,44.16,123.94,123.85,27.34514121]
[1741773078937,44.16,123.94,123.87,27.34514121]
[1741773079133,44.16,123.94,123.86,46.4074]
[1741773079335,10.55162361,123.97,123.88,27.34514121]
[1741773079541,42.20649446,123.97,123.88,27.34514121]
[1741773079733,42.20649446,123.97,123.9,27.34514121]
[1741773079940,0.05514059,123.94,123.92,27.34514121]
[1741773080142,42.20649446,123.97,123.92,27.34514121]
[1741773080644,42.20649446,123.97,123.91,0.06046507]
[1741773081045,44.16,123.99,123.91,0.06046507]
[1741773081346,0.05707865,123.95,123.9,44.16]
[1741773081536,0.05707865,123.95,123.94,0.06015353]
[1741773081843,0.05707865,123.95,123.9,44.16]
[1741773082043,0.05707865,123.95,123.93,0.05980808]
[1741773082346,0.05707865,123.95,123.89,71.50514121]
[1741773082647,44.16,123.99,123.89,71.50514121]
[1741773083348,44.16,123.99,123.88,27.34514121]
[1741773083549,0.05941969,123.95,123.93,0.05953637]
[1741773083939,10.55162361,124.0,123.93,0.05953637]
[1741773084144,44.14,123.99,123.93,0.05953637]
[1741773085152,0.05111958,123.97,123.93,0.05953637]
[1741773086850,0.05111958,123.97,123.9,27.34514121]
[1741773087546,27.34514121,123.96,123.89,2.343]
[1741773087847,44.12,123.95,123.89,2.343]
[1741773088052,0.05745485,123.94,123.91,0.05936227]
[1741773098357,0.05745485,123.94,123.89,2.343]
[1741773098557,10.55162361,123.97,123.91,17.09138583]
[1741773098762,10.55162361,123.97,123.92,2.1915]
[1741773098958,10.55162361,123.97,123.93,17.09138583]
[1741773099255,31.65487085,123.98,123.95,17.09138583]
[1741773099657,31.70833524,123.98,123.95,17.15055622]
[1741773099851,25.34013878,123.96,123.95,17.15055622]
[1741773100053,3.57433878,123.96,123.95,17.15055622]
[1741773100249,3.57433878,123.96,123.95,0.05917039]
[1741773102357,0.05346439,123.98,123.95,0.05917039]
[1741773105157,69.01401093,123.97,123.95,0.05917039]
[1741773105764,69.01401093,123.97,123.9,27.32025603]
[1741773106254,69.01401093,123.97,123.88,44.0]
[1741773106455,5.97247433,123.96,123.85,4.0319]
[1741773106662,158.60767867,123.96,123.85,4.0319]
[1741773106861,2.2861,123.95,123.85,4.0319]
[1741773107157,0.06065232,123.92,123.85,4.0319]
[1741773107661,5.97247433,123.91,123.85,4.0319]
[1741773108063,0.06106988,123.89,123.85,4.0319]
[1741773108556,0.06106988,123.89,123.85,6.4519]
[1741773109360,32.48523911,123.91,123.85,68.4519]
[1741773109556,32.48523911,123.91,123.89,27.32025603]
[1741773110464,32.54455103,123.91,123.89,27.38161997]
[1741773111160,32.54455103,123.91,123.89,0.06136394]
[1741773111357,6.04474854,123.9,123.89,0.06136394]
[1741773112065,6.04474854,123.9,123.89,2.48136394]
[1741773112366,6.04474854,123.9,123.89,0.06136394]
[1741773113862,60.47615525,123.94,123.89,2.48136394]
[1741773114166,60.47615525,123.94,123.91,27.32025603]
[1741773114367,60.47615525,123.95,123.92,43.96]
[1741773115066,60.52950922,123.95,123.92,44.01114778]
[1741773116067,0.05335397,123.95,123.92,44.01114778]
[1741773117170,25.10740728,123.98,123.94,27.32025603]
[1741773118270,0.05556519,123.97,123.95,0.05745431]
[1741773129075,0.05556519,123.97,123.9,71.20025603]
[1741773129273,2.40406519,123.97,123.9,71.20025603]
[1741773129579,2.40406519,123.97,123.89,236.84]
[1741773129781,2.2325,123.96,123.89,236.84]
[1741773129981,2.2325,123.96,123.87,27.32025603]
[1741773130274,0.05610713,123.94,123.91,0.05227485]
[1741773130481,43.89610713,123.94,123.83,43.84]
[1741773130676,43.84,123.94,123.83,43.84]
[1741773131381,27.32025603,123.93,123.82,43.84]
[1741773131583,0.05781645,123.9,123.88,0.05974811]
[1741773132074,0.05781645,123.9,123.82,43.84]
[1741773132377,27.32025603,123.93,123.81,71.16025603]
[1741773132975,242.1,123.92,123.78,462.38025603]
[1741773133181,0.05768223,123.86,123.83,27.32025603]
[1741773133383,27.32025603,123.95,123.85,27.32025603]
[1741773134182,27.32025603,123.95,123.84,43.82]
[1741773134482,0.05844795,123.91,123.88,0.06036306]
[1741773136382,27.32025603,123.89,123.78,435.06]
[1741773136582,46.1295,123.88,123.78,435.06]
[1741773137382,0.05110466,123.84,123.78,193.0]
[1741773137583,43.85110466,123.84,123.76,27.32025603]
[1741773137783,43.8,123.84,123.76,27.32025603]
[1741773137984,0.05368145,123.81,123.76,27.32025603]
[1741773138888,0.05368145,123.81,123.75,2.9197]
[1741773139384,0.05368145,123.81,123.75,30.23995603]
[1741773139785,0.05368145,123.81,123.78,27.32025603]
[1741773140086,2.3059,123.87,123.79,43.8]
[1741773140291,2.3059,123.87,123.81,27.32025603]
[1741773140476,2.3059,123.87,123.79,43.8]
[1741773140981,0.05183008,123.84,123.82,27.37753894]
[1741773141187,2.3431,123.91,123.82,27.37753894]
[1741773141385,4.7325,123.91,123.82,27.32025603]
[1741773141589,4.7325,123.91,123.83,43.8]
[1741773142386,0.06018302,123.88,123.86,0.05251725]
[1741773143884,0.06018302,123.88,123.87,43.78]
[1741773144888,0.06018302,123.88,123.86,0.05251725]
[1741773146892,4.4284,123.95,123.86,0.05251725]
[1741773147191,4.4284,123.95,123.88,27.32025603]
[1741773147489,4.4284,123.95,123.88,71.08025603]
[1741773148090,0.05917834,123.93,123.9,0.05503273]
[1741773153398,0.05917834,123.93,123.84,264.04025603]
[1741773153594,71.04025603,123.94,123.84,220.32025603]
[1741773153795,71.04025603,123.94,123.84,264.02025603]
[1741773154389,0.0520739,123.9,123.88,0.05871451]
[1741773154598,0.0520739,123.9,123.81,30.34795603]
[1741773154895,2.4061,123.92,123.82,43.7]
[1741773155791,0.05555225,123.88,123.86,0.05554877]
[1741773156295,0.05555225,123.88,123.82,43.7]
[1741773156490,0.05555225,123.88,123.78,27.32025603]
[1741773156696,2.2152,123.89,123.79,43.7]
[1741773157597,0.05524976,123.86,123.79,43.7]
[1741773159894,0.05524976,123.86,123.83,27.32025603]
[1741773160100,2.4061,123.92,123.84,43.68]
[1741773161201,0.06070973,123.89,123.87,0.05324845]
[1741773163001,10.87014624,123.98,123.88,43.66]
[1741773163203,10.87014624,123.98,123.91,27.32025603]
[1741773163399,10.87014624,123.98,123.92,43.66]
[1741773164301,0.05626896,123.96,123.94,0.05347609]
[1741773168500,0.05626896,123.96,123.94,27.37373212]
[1741773168795,6.9627,124.05,123.94,27.37373212]
[1741773169001,6.9627,124.05,123.94,27.32025603]
[1741773169708,0.05569542,124.01,123.98,0.05148805]
[1741773174207,0.05569542,124.01,123.99,27.32025603]
[1741773174408,4.6505,124.05,124.0,43.58]
[1741773174811,2.3739,124.1,124.0,43.58]
[1741773175013,4.4658,124.09,124.0,43.58]
[1741773175314,4.4658,124.09,124.01,27.32025603]
[1741773175506,0.05529053,124.06,124.03,0.05982574]
[1741773178313,0.05529053,124.06,124.04,43.54]
[1741773180411,4.4658,124.09,124.04,43.54]
[1741773181214,285.58,124.14,124.04,43.54]
[1741773181516,0.05367484,124.1,124.04,43.54]
[1741773181716,0.05367484,124.1,124.08,0.0538528]
[1741773185421,0.05367484,124.1,124.08,43.5338528]
[1741773185823,4.3829,124.13,124.08,43.5338528]
[1741773186923,2.1421,124.16,124.08,70.85410883]
[1741773187123,4.3998,124.17,124.12,27.32025603]
[1741773187328,47.75518535,124.2,124.13,43.46]
[1741773187829,4.3998,124.2,124.13,43.46]
[1741773188332,0.05483247,124.18,124.15,0.05898408]
[1741773196440,4.2732,124.23,124.16,27.32025603]
[1741773196642,2.3147,124.25,124.18,27.32025603]
[1741773197342,2.3147,124.25,124.17,43.38]
[1741773197542,0.05172886,124.23,124.2,0.05845691]
[1741773211149,0.05172886,124.23,124.2,17.06894432]
[1741773211346,0.05172886,124.23,124.21,43.28]
[1741773228761,0.05172886,124.23,124.2,0.05845691]
[1741773230560,0.05172886,124.23,124.2,17.06894432]
[1741773236262,0.05172886,124.23,124.21,10.88426731]
[1741773246464,0.05172886,124.23,124.2,0.05845691]
[1741773246666,0.05172886,124.23,124.21,10.88426731]
[1741773255771,10.87014624,124.28,124.22,42.98]
[1741773255972,10.87014624,124.28,124.25,10.88426731]
[1741773256566,10.87014624,124.28,124.27,10.88426731]
[1741773258270,118.60993387,124.29,124.27,10.88426731]
[1741773258473,129.10167886,124.3,124.27,10.88426731]
[1741773258672,241.87878721,124.32,124.29,10.88426731]
[1741773258868,241.87878721,124.32,124.31,10.88426731]
[1741773259875,88.57544665,124.33,124.31,10.88426731]
[1741773262384,0.055497,124.33,124.31,10.88426731]
[1741773264679,0.055497,124.33,124.3,0.05912605]
[1741773265079,0.055497,124.33,124.31,10.88426731]
[1741773266479,0.055497,124.33,124.3,0.05912605]
[1741773266685,0.055497,124.33,124.3,10.94339336]
[1741773268988,0.055497,124.33,124.31,10.88426731]
[1741773269983,0.055497,124.33,124.32,10.88426731]
[1741773270587,10.88426731,124.43,124.32,53.74426731]
[1741773270887,10.88426731,124.44,124.39,10.88426731]
[1741773271282,5.7579,124.47,124.39,10.88426731]
[1741773271588,16.64216731,124.47,124.41,10.88426731]
[1741773271790,0.05516375,124.44,124.42,0.05480339]
[1741773272783,0.05516375,124.44,124.43,10.88426731]
[1741773276890,0.05516375,124.44,124.42,0.05480339]
[1741773278689,0.05516375,124.44,124.43,10.88426731]
[1741773284189,0.05516375,124.44,124.42,0.05480339]
[1741773285992,0.05516375,124.44,124.43,10.88426731]
[1741773295807,0.05516375,124.44,124.42,0.05480339]
[1741773301615,0.05516375,124.44,124.43,10.88426731]
[1741773306122,361.11156495,124.6,124.43,13.30426731]
[1741773306421,5.8063,124.53,124.51,10.88426731]
[1741773306818,5.8063,124.53,124.5,42.56]
[1741773307120,16.69056731,124.53,124.47,10.88426731]
[1741773307320,16.74430297,124.53,124.5,0.05552788]
[1741773307720,3.0061,124.52,124.5,0.05552788]
[1741773308920,0.05373566,124.53,124.5,42.61552788]
[1741773309126,0.05373566,124.53,124.51,16.93600319]
[1741773309530,0.05373566,124.53,124.51,42.54]
[1741773310227,0.05373566,124.53,124.5,0.05552788]
[1741773313427,16.98973885,124.53,124.5,0.05552788]
[1741773313623,8.4007,124.52,124.43,62.50550319]
[1741773314822,0.05228711,124.49,124.46,0.06186834]
[1741773316030,0.05228711,124.49,124.41,59.43600319]
[1741773316330,16.93600319,124.49,124.41,59.43600319]
[1741773316829,16.93600319,124.51,124.41,59.43600319]
[1741773317225,0.05201617,124.47,124.45,0.06051455]
[1741773319428,0.05201617,124.47,124.45,16.99651774]
[1741773319627,8.4007,124.52,124.47,16.93600319]
[1741773319933,8.4007,124.52,124.47,59.41600319]
[1741773320827,0.05134784,124.51,124.48,0.05607762]
[1741773322534,0.05134784,124.51,124.43,16.93600319]
[1741773322535,59.44735103,124.51,124.43,16.93600319]
[1741773322831,16.93600319,124.49,124.41,16.93600319]
[1741773323032,16.93600319,124.49,124.4,155.1950827]
[1741773323732,0.05118571,124.46,124.43,0.05944421]
[1741773324633,16.93600319,124.45,124.37,50.44032116]
[1741773324831,16.93600319,124.45,124.37,16.93600319]
[1741773325232,6.0399,124.46,124.39,16.93600319]
[1741773325637,0.05106371,124.44,124.41,0.05823308]
[1741773333845,0.05106371,124.44,124.41,16.99423627]
[1741773337454,0.05106371,124.44,124.43,16.93600319]
[1741773337745,8.4419,124.51,124.43,59.31600319]
[1741773337945,8.4419,124.51,124.45,16.93600319]
[1741773338841,8.4419,124.51,124.47,0.06142554]
[1741773339052,0.05290949,124.49,124.47,0.06142554]
[1741773367059,0.05290949,124.49,124.47,16.99742873]
[1741773367267,18.33418315,124.58,124.47,16.99742873]
[1741773367564,25.70390319,124.58,124.5,16.93600319]
[1741773368064,25.70390319,124.58,124.48,16.93600319]
[1741773368565,0.05426961,124.54,124.52,0.05774453]
[1741773370556,16.9902728,124.54,124.52,0.05774453]
[1741773370760,16.9902728,124.54,124.46,42.18]
[1741773370960,16.93600319,124.51,124.43,59.07600319]
[1741773371867,0.0551368,124.48,124.46,0.05638174]
[1741773374564,42.14,124.54,124.47,59.05600319]
[1741773374866,241.04,124.56,124.49,16.93600319]
[1741773375268,241.04,124.56,124.47,62.00960319]
[1741773375666,241.04,124.56,124.5,0.05984349]
[1741773375871,0.05397468,124.53,124.5,0.05984349]
[1741773378073,0.05397468,124.53,124.51,59.03600319]
[1741773378964,2.7943,124.59,124.51,59.03600319]
[1741773379973,0.05334012,124.56,124.54,0.05106595]
[1741773393983,16.98934331,124.56,124.48,240.98]
[1741773394184,16.93600319,124.56,124.48,282.96]
[1741773394882,58.91600319,124.58,124.49,16.93600319]
[1741773395276,0.05679545,124.55,124.52,0.05263615]
[1741773397985,0.05679545,124.55,124.52,42.01263615]
[1741773398186,0.05679545,124.55,124.53,16.93600319]
[1741773398991,282.98,124.62,124.53,16.93600319]
[1741773399790,241.02,124.62,124.53,16.93600319]
[1741773400292,0.05478874,124.59,124.56,0.0563751]
[1741773402087,8.874e-05,124.59,124.56,0.0563751]
[1741773402293,8.874e-05,124.59,124.56,41.9763751]
[1741773402490,8.874e-05,124.59,124.58,8.0284]
[1741773403292,11.04213341,124.67,124.66,8.0232]
[1741773403492,16.93600319,124.69,124.62,58.85600319]
[1741773403792,60.70217961,124.71,124.62,58.85600319]
[1741773403992,69.81027961,124.71,124.69,8.0206]
[1741773404199,69.81027961,124.71,124.62,58.85600319]
[1741773404391,69.86375216,124.71,124.69,0.05263733]
[1741773404592,69.81027961,124.71,124.7,8.0206]
[1741773404792,69.86369336,124.71,124.7,8.0206]
[1741773405292,49.92999017,124.71,124.7,8.0206]
[1741773405603,43.81959017,124.71,124.7,8.0206]
[1741773405994,87.26752194,124.72,124.71,8.02]
[1741773406591,87.26752194,124.72,124.69,0.0584525]
[1741773406592,16.93600319,124.75,124.72,8.0188]
[1741773406786,16.93600319,124.75,124.67,41.88]
[1741773406787,16.93600319,124.73,124.67,41.88]
[1741773407187,0.04408451,124.71,124.69,0.0591156]
[1741773407386,16.93600319,124.77,124.73,8.0181]
[1741773407594,0.04408451,124.71,124.68,16.98785258]
[1741773407892,0.04408451,124.71,124.68,16.99118394]
[1741773408289,8.451e-05,124.71,124.7,16.93600319]
[1741773408493,11.04415217,124.78,124.7,16.93600319]
[1741773408695,11.04415217,124.78,124.72,16.93600319]
[1741773409095,11.04415217,124.78,124.77,8.0161]
[1741773409490,5.7602,124.79,124.72,16.93600319]
[1741773409691,299.63600319,124.83,124.76,0.05386581]
[1741773410297,299.63600319,124.83,124.79,8.0143]
[1741773410494,16.93600319,124.81,124.74,16.93600319]
[1741773410694,16.93600319,124.79,124.72,16.93600319]
[1741773410895,16.93600319,124.79,124.76,0.05689874]
[1741773410896,2.8719,124.78,124.76,0.05689874]
[1741773411085,16.93600319,124.77,124.7,2.9469]
[1741773411286,16.93600319,124.75,124.7,8.0204]
[1741773411488,66.79340319,124.75,124.66,58.79600319]
[1741773411699,16.93600319,124.73,124.66,58.79600319]
[1741773411892,5.7123,124.72,124.66,58.79600319]
[1741773412098,5.7123,124.72,124.67,8.0223]
[1741773412300,5.7123,124.72,124.66,58.79600319]
[1741773412301,0.05138895,124.7,124.68,0.05287998]
[1741773412599,0.05138895,124.7,124.69,8.0213]
[1741773413498,0.05138895,124.7,124.68,8.07447998]
[1741773413896,0.05138895,124.7,124.68,0.05287998]
[1741773414090,0.05138895,124.7,124.69,8.0213]
[1741773414487,0.05138895,124.7,124.68,0.05287998]
[1741773414691,0.05138895,124.7,124.68,8.07437998]
[1741773415197,0.05138895,124.7,124.68,0.05287998]
[1741773415496,0.05138895,124.7,124.69,8.0213]
[1741773415899,0.05138895,124.7,124.68,8.07457998]
[1741773416301,0.05138895,124.7,124.68,0.05287998]
[1741773422201,0.05138895,124.7,124.62,27.01077568]
[1741773422403,41.76,124.7,124.6,33.11437568]
[1741773422597,3.0535,124.69,124.6,44.8317]
[1741773423107,3.0535,124.69,124.57,2.8491]
[1741773423108,27.01077568,124.67,124.57,2.8491]
[1741773423305,0.05306754,124.63,124.61,0.05870369]
[1741773423504,8.07856754,124.63,124.61,0.05870369]
[1741773424006,0.05306754,124.63,124.61,0.05870369]
[1741773425207,0.05306754,124.63,124.56,41.76]
[1741773425809,8.0268,124.61,124.56,41.76]
[1741773426409,0.05198743,124.6,124.57,0.05385788]
[1741773426808,0.05198743,124.6,124.58,8.0279]
[1741773427212,0.05198743,124.6,124.57,0.05385788]
[1741773427414,0.05198743,124.6,124.58,27.01077568]
[1741773427613,0.05198743,124.6,124.57,0.05385788]
[1741773428212,0.05198743,124.6,124.57,8.08245788]
[1741773428412,0.05198743,124.6,124.57,0.05385788]
[1741773428916,0.05198743,124.6,124.57,8.08255788]
[1741773431612,8.07908743,124.6,124.57,8.08255788]
[1741773431924,0.05198743,124.6,124.57,0.05385788]
[1741773432216,8.0284,124.58,124.57,0.05385788]
[1741773434922,41.72,124.59,124.51,3.0635]
[1741773435122,74.66157568,124.59,124.51,8.0326]
[1741773436025,74.66157568,124.59,124.54,0.05117555]
[1741773436026,0.05131039,124.56,124.54,0.05117555]
[1741773436617,0.05131039,124.56,124.54,27.06195123]
[1741773436817,0.05131039,124.56,124.55,8.0303]
[1741773437516,0.05131039,124.56,124.54,0.05117555]
[1741773437718,8.08111039,124.56,124.54,0.05117555]
[1741773438627,0.05131039,124.56,124.54,8.08207555]
[1741773438817,0.05131039,124.56,124.54,0.05117555]
[1741773439124,1.039e-05,124.56,124.55,8.0303]
[1741773441926,2.9044,124.65,124.61,8.0261]
[1741773442118,2.9044,124.65,124.57,27.01077568]
[1741773442322,44.5844,124.65,124.57,27.01077568]
[1741773442524,8.0248,124.64,124.62,8.0258]
[1741773442721,2.9044,124.65,124.62,8.0258]
[1741773443024,2.96385516,124.65,124.62,0.05568291]
[1741773443223,2.96385516,124.65,124.63,8.0251]
[1741773443431,0.05945516,124.65,124.63,8.0251]
[1741773444116,0.05945516,124.65,124.64,8.0245]
[1741773444727,0.05945516,124.65,124.62,0.05568291]
[1741773445026,0.05945516,124.65,124.63,8.0249]
[1741773445224,8.08335516,124.65,124.62,0.05568291]
[1741773445427,8.08335516,124.65,124.62,8.08118291]
[1741773445623,0.05945516,124.65,124.62,0.05568291]
[1741773445929,8.0251,124.63,124.62,0.05568291]
[1741773446931,0.05945516,124.65,124.62,8.08148291]
[1741773447129,0.05945516,124.65,124.62,0.05568291]
[1741773447424,8.0248,124.64,124.62,0.05568291]
[1741773448024,0.05945516,124.65,124.62,0.05568291]
[1741773448225,8.0251,124.63,124.62,0.05568291]
[1741773449431,8.0248,124.64,124.62,0.05568291]
[1741773449729,0.05945516,124.65,124.62,0.05568291]
[1741773450627,27.07023084,124.65,124.55,6.0351]
[1741773450834,5.8143,124.64,124.55,6.0351]
[1741773451026,5.8143,124.64,124.56,8.0293]
[1741773451027,8.0278,124.59,124.56,8.0293]
[1741773451227,5.8143,124.64,124.52,33.50431797]
[1741773451228,41.64,124.62,124.52,33.50431797]
[1741773451428,8.0293,124.57,124.54,8.0304]
[1741773451634,27.01077568,124.61,124.52,6.0506]
[1741773451943,0.06048863,124.57,124.54,0.05817313]
[1741773452328,8.03,124.56,124.54,0.05817313]
[1741773452725,0.06048863,124.57,124.54,0.05817313]
[1741773452930,35.86536431,124.57,124.5,122.8491659]
[1741773453331,8.0326,124.52,124.5,122.8491659]
[1741773453528,35.80487568,124.57,124.5,122.8491659]
[1741773454235,0.06029045,124.55,124.52,0.05066907]
[1741773454535,8.0309,124.54,124.52,0.05066907]
[1741773454835,0.06029045,124.55,124.52,0.05066907]
[1741773455742,0.06029045,124.55,124.52,3.02956907]
[1741773456030,0.06029045,124.55,124.52,5.95566907]
[1741773456436,0.06029045,124.55,124.54,8.0309]
[1741773460935,0.06029045,124.55,124.53,8.0312]
[1741773461141,0.06029045,124.55,124.52,0.05066907]
[1741773461541,0.06029045,124.55,124.52,8.08286907]
[1741773461742,8.09119045,124.55,124.52,8.08286907]
[1741773462351,0.06029045,124.55,124.52,0.05066907]
[1741773463651,0.06029045,124.55,124.53,8.0312]
[1741773463849,0.06029045,124.55,124.52,0.05066907]
[1741773466056,0.06029045,124.55,124.52,8.08256907]
[1741773466456,8.09059045,124.55,124.52,8.08256907]
[1741773466850,0.06029045,124.55,124.54,8.0309]
[1741773467149,0.06029045,124.55,124.52,0.05066907]
[1741773467558,0.06029045,124.55,124.53,8.0312]
[1741773468758,0.06029045,124.55,124.52,0.05066907]
[1741773469453,0.06029045,124.55,124.54,8.0309]
[1741773469661,0.06029045,124.55,124.52,0.05066907]
[1741773469957,8.0314,124.54,124.52,8.08286907]
[1741773470646,8.0316,124.53,124.52,0.05066907]
[1741773470852,0.06029045,124.55,124.52,0.05066907]
[1741773471155,8.0312,124.54,124.52,0.05066907]
[1741773471656,0.06029045,124.55,124.52,0.05066907]
[1741773471853,8.0316,124.53,124.52,0.05066907]
[1741773472054,41.54,124.53,124.44,164.3891659]
[1741773472358,8.0332,124.51,124.48,8.0345]
[1741773472555,41.54,124.53,124.44,191.39994158]
[1741773472857,49.5716,124.53,124.5,8.0332]
[1741773473252,49.62680192,124.53,124.5,8.08785679]
[1741773474254,49.62680192,124.53,124.5,0.05465679]
[1741773474462,0.05520192,124.53,124.52,8.0322]
[1741773477557,3.1005,124.58,124.55,8.0299]
[1741773477958,11.1293,124.58,124.55,8.0299]
[1741773478664,11.18695333,124.58,124.55,8.08179753]
[1741773479864,0.05765333,124.58,124.57,8.029]
[1741773480364,240.94,124.63,124.56,27.01077568]
[1741773481359,240.94,124.63,124.54,27.01077568]
[1741773481566,0.06079253,124.61,124.58,0.05996139]
[1741773481754,8.08749253,124.61,124.58,8.08836139]
[1741773481954,0.06079253,124.61,124.58,0.05996139]
[1741773482962,0.06079253,124.61,124.53,41.48]
[1741773482963,27.07156821,124.61,124.53,41.48]
[1741773483165,27.01077568,124.59,124.49,2.9434]
[1741773483367,8.0317,124.53,124.49,2.9434]
[1741773483563,27.01077568,124.57,124.49,2.9434]
[1741773483765,27.01077568,124.57,124.46,149.85994158]
[1741773483970,8.0322,124.52,124.51,122.8491659]
[1741773484867,0.05567199,124.53,124.51,122.8491659]
[1741773485062,0.05567199,124.53,124.51,130.8819659]
[1741773485466,0.05567199,124.53,124.52,8.0322]
[1741773485670,0.05567199,124.53,124.51,122.8491659]
[1741773485671,2.9225,124.58,124.51,122.8491659]
[1741773485973,41.46,124.59,124.51,122.8491659]
[1741773486163,41.46,124.64,124.53,27.01077568]
[1741773486359,41.46,124.64,124.55,27.01077568]
[1741773486563,8.0255,124.63,124.59,8.0277]
[1741773486968,0.06031842,124.62,124.6,0.05697747]
[1741773488765,0.06031842,124.62,124.61,8.0264]
[1741773489772,0.00213437,124.62,124.61,8.0264]
[1741773492378,0.00213437,124.62,124.61,35.03717568]
[1741773493982,8.0222,124.68,124.61,27.01077568]
[1741773494582,8.0227,124.67,124.63,8.0248]
[1741773494879,8.0227,124.67,124.61,27.01077568]
[1741773495084,0.05466326,124.66,124.64,0.05623588]
[1741773495584,8.07786326,124.66,124.64,0.05623588]
[1741773495782,0.05466326,124.66,124.64,0.05623588]
[1741773495985,0.05466326,124.66,124.6,8.027]
[1741773496180,41.43466326,124.66,124.58,41.4]
[1741773496375,41.38,124.66,124.58,41.4]
[1741773496580,41.38,124.66,124.6,8.0268]